No of Trans,Dept Family,Entity Name,Cert Date,Supplier Name,Reference,Gross Amt,Group/Department,Type of Expenditure - Subjective Codes,
1,DCMS,EH,06/01/2014,Feilden Clegg Bradley Studios LLP,40050853,"48,000.00",Heritage Protection & Planning-Nat. Planning & Conservation,Commissioned Architects,
2,DCMS,EH,09/01/2014,Feilden Clegg Bradley Studios LLP,40052156,"72,000.00",Heritage Protection & Planning-Nat. Planning & Conservation,Commissioned Architects,
3,DCMS,EH,21/01/2014,University of York,40053469,"25,000.00",Heritage Protection & Planning-Heritage Protection,Hist Environ Prog Projects Gra,
4,DCMS,EH,24/01/2014,University of York,40053730,"35,000.00",Heritage Protection & Planning-Heritage Protection,Hist Environ Prog Projects Gra,
5,DCMS,EH,09/01/2014,Electrosonic Ltd,40052533,"165,616.84",National Collections-Capital Investment Programme,WIP Professional Works Advice,
6,DCMS,EH,15/01/2014,Treasure and Son,40052567,"28,969.62",National Collections-Property Maintenance Programme,Annual Cyclical Works-Building,
7,DCMS,EH,14/01/2014,Lincolnshire County Council,40052035,"70,463.52",National Collections-Local Management Agreements,RO Management Agreement,
8,DCMS,EH,10/01/2014,William Anelay Limited,40053198,"121,578.00",Heritage Protection & Planning-Nat. Planning & Conservation,Works for Heritage Buildings,
9,DCMS,EH,02/01/2014,The National Trust Wiltshire,40052060,"36,809.80",National Collections-Historic Properties Department,Rent - Operating Leases,
10,DCMS,EH,31/01/2014,The National Trust Wiltshire,40054881,"1,647.60",National Collections-Local Management Agreements,RO Management Agreement,
11,DCMS,EH,31/01/2014,The National Trust Wiltshire,40054881,"30,000.00",National Collections-Local Management Agreements,RO Management Agreement,
12,DCMS,EH,28/01/2014,Sykes and Son Limited,40053513,"181,542.38",National Collections-Major Conservation Projects,Works for Heritage Buildings,
13,DCMS,EH,15/01/2014,Blue Strawberry,40052556,"33,355.32",National Advice & Information-Communications Department,Launch Events,
14,DCMS,EH,03/01/2014,Gillards Worldwide,40051411,"47,027.60",National Collections-Historic Properties Department,Storage & Warehousing,
15,DCMS,EH,21/01/2014,Gillards Worldwide,40053722,"34,590.48",National Collections-Historic Properties Department,Storage & Warehousing,
16,DCMS,EH,13/01/2014,Historic Property Restoration Ltd,40051192,"45,694.85",National Collections-Property Maintenance Programme,Planned Maintenance,
17,DCMS,EH,13/01/2014,Historic Property Restoration Ltd,40052810,856.18,National Collections-Property Maintenance Programme,Annual Cyclical Work M & E,
18,DCMS,EH,13/01/2014,Historic Property Restoration Ltd,40052810,"17,054.33",National Collections-Property Maintenance Programme,Annual Cyclical Work M & E,
19,DCMS,EH,13/01/2014,Historic Property Restoration Ltd,40052810,"5,857.25",National Collections-Property Maintenance Programme,Annual Cyclical Works-Building,
20,DCMS,EH,13/01/2014,Historic Property Restoration Ltd,40052810,"47,075.24",National Collections-Property Maintenance Programme,Annual Cyclical Works-Building,
21,DCMS,EH,14/01/2014,Hutchinson Environmental Solutions Ltd,40052528,"31,344.60",National Collections-Major Conservation Projects,Works for Heritage Buildings,
22,DCMS,EH,14/01/2014,Hutchinson Environmental Solutions Ltd,40052528,"2,750.74",National Collections-Property Maintenance Programme,Planned Maintenance,
23,DCMS,EH,21/01/2014,Capita IB Solutions (UK) Ltd,40049805,"40,800.00",Resources-Finance & Procurement Dept,Software Maintenance,
24,DCMS,EH,17/01/2014,Capita IB Solutions (UK) Ltd,40054003,"-16,808.94",Resources-Finance & Procurement Dept,Software Maintenance,
25,DCMS,EH,22/01/2014,Enterprise Rent A Car UK Ltd,20053698,"40,620.01",Resources-Corporate,Car Hire,
26,DCMS,EH,07/01/2014,Pace Fuelcare Ltd,40052084,"26,476.46",National Collections-Historic Properties Department,Gas & Oil,
27,DCMS,EH,03/01/2014,William Hardie Design,40051939,"30,814.92",National Collections-Capital Investment Programme,WIP Operational Building Works,
28,DCMS,EH,13/01/2014,Chesters Farming Partnership,40052353,"26,441.00",National Collections-Historic Properties Department,Rent - Operating Leases,
29,DCMS,EH,28/01/2014,Robert Woodhead Ltd,40053569,"65,742.56",National Collections-Capital Investment Programme,WIP Operational Building Works,
30,DCMS,EH,09/01/2014,Fairhurst Ward Abbotts Ltd,40052238,"184,274.82",National Collections-Capital Investment Programme,WIP Operational Building Works,
31,DCMS,EH,31/01/2014,Fairhurst Ward Abbotts Ltd,40054580,"151,715.20",National Collections-Capital Investment Programme,WIP Operational Building Works,
32,DCMS,EH,31/01/2014,Mountjoy Ltd,40054183,"69,057.98",National Collections-Capital Investment Programme,WIP Operational Building Works,
33,DCMS,EH,03/01/2014,Capita Secure Information Solutions Ltd,40050610,"246,784.62",Resources-IMT,ITFM,
34,DCMS,EH,28/01/2014,Capita Secure Information Solutions Ltd,40050616,"1,708.80",National Collections-Capital Investment Programme,Computer Equipment <10k,
35,DCMS,EH,28/01/2014,Capita Secure Information Solutions Ltd,40050616,"1,430.40",National Collections-Capital Investment Programme,Computer Equipment <10k,
36,DCMS,EH,28/01/2014,Capita Secure Information Solutions Ltd,40050616,894,National Collections-Capital Investment Programme,Computer Equipment <10k,
37,DCMS,EH,28/01/2014,Capita Secure Information Solutions Ltd,40050616,"8,276.40",National Collections-Capital Investment Programme,Computer Equipment <10k,
38,DCMS,EH,28/01/2014,Capita Secure Information Solutions Ltd,40050616,"3,949.15",National Collections-Capital Investment Programme,Computer Equipment <10k,
39,DCMS,EH,28/01/2014,Capita Secure Information Solutions Ltd,40050616,60,National Collections-Capital Investment Programme,Computer Equipment <10k,
40,DCMS,EH,28/01/2014,Capita Secure Information Solutions Ltd,40050616,"3,114.27",National Collections-Capital Investment Programme,Computer Equipment <10k,
41,DCMS,EH,28/01/2014,Capita Secure Information Solutions Ltd,40050616,"9,306.24",National Collections-Capital Investment Programme,Computer Equipment <10k,
42,DCMS,EH,28/01/2014,Capita Secure Information Solutions Ltd,40050616,626.4,National Collections-Capital Investment Programme,Computer Equipment <10k,
43,DCMS,EH,28/01/2014,Capita Secure Information Solutions Ltd,40050616,"7,561.32",National Collections-Capital Investment Programme,Computer Equipment <10k,
44,DCMS,EH,28/01/2014,Capita Secure Information Solutions Ltd,40050616,633.6,National Collections-Capital Investment Programme,Computer Equipment <10k,
45,DCMS,EH,28/01/2014,Capita Secure Information Solutions Ltd,40050616,162,National Collections-Capital Investment Programme,Computer Equipment <10k,
46,DCMS,EH,28/01/2014,Capita Secure Information Solutions Ltd,40050616,86.4,National Collections-Capital Investment Programme,Computer Equipment <10k,
47,DCMS,EH,28/01/2014,Capita Secure Information Solutions Ltd,40050616,"1,382.40",National Collections-Capital Investment Programme,Computer Equipment <10k,
48,DCMS,EH,28/01/2014,Capita Secure Information Solutions Ltd,40050616,929.04,National Collections-Capital Investment Programme,Computer Equipment <10k,
49,DCMS,EH,28/01/2014,Capita Secure Information Solutions Ltd,40050616,"1,161.24",National Collections-Capital Investment Programme,Computer Equipment <10k,
50,DCMS,EH,28/01/2014,Capita Secure Information Solutions Ltd,40050616,"1,324.08",National Collections-Capital Investment Programme,Computer Equipment <10k,
51,DCMS,EH,30/01/2014,Capita Secure Information Solutions Ltd,40052382,"27,081.64",Resources-IMT,ITFM,
52,DCMS,EH,30/01/2014,Capita Secure Information Solutions Ltd,40053034,"85,238.34",Resources-IMT,System Developments <50k,
53,DCMS,EH,09/01/2014,Capita Secure Information Solutions Ltd,40053038,"32,010.29",Resources-IMT,Software Licences <10k,
54,DCMS,EH,08/01/2014,CB Richard Ellis Ltd,40052132,"-15,597.88",Resources-Office Estate,Building Service Charges,
55,DCMS,EH,24/01/2014,Lodge & Sons (Builders) Ltd,40053283,"33,684.48",Heritage Protection & Planning-Nat. Planning & Conservation,Fees for Professional Advice,
56,DCMS,EH,13/01/2014,Leach Colour,40052418,"37,875.60",National Collections-Capital Investment Programme,"WIP Exhib, Displays & Fit Out",
57,DCMS,EH,03/01/2014,Universal Stone Limited,40052011,"28,561.17",National Collections-Major Conservation Projects,Works for Heritage Buildings,
58,DCMS,EH,08/01/2014,Specialist Computer Centres plc,40052678,"34,237.70",Resources-IMT,Software Maintenance,
59,DCMS,EH,16/01/2014,Vinci Construction UK Ltd,40053977,"37,530.00",National Collections-Capital Investment Programme,WIP Operational Building Works,
60,DCMS,EH,16/01/2014,Vinci Construction UK Ltd,40053977,"300,430.80",National Collections-Capital Investment Programme,WIP Operational Building Works,
61,DCMS,EH,16/01/2014,Vinci Construction UK Ltd,40053977,"53,590.80",National Collections-Capital Investment Programme,WIP Operational Building Works,
62,DCMS,EH,16/01/2014,Vinci Construction UK Ltd,40053977,"92,782.80",National Collections-Capital Investment Programme,WIP Operational Building Works,
63,DCMS,EH,16/01/2014,Vinci Construction UK Ltd,40053977,"59,751.60",National Collections-Capital Investment Programme,WIP Operational Building Works,
64,DCMS,EH,16/01/2014,Vinci Construction UK Ltd,40053977,"37,718.40",National Collections-Capital Investment Programme,WIP Operational Building Works,
65,DCMS,EH,16/01/2014,Vinci Construction UK Ltd,40053977,"33,781.20",National Collections-Capital Investment Programme,Works for Heritage Buildings,
66,DCMS,EH,16/01/2014,Vinci Construction UK Ltd,40053977,"1,814.40",National Collections-Capital Investment Programme,Works for Heritage Buildings,
67,DCMS,EH,16/01/2014,Vinci Construction UK Ltd,40053977,"2,683.20",National Collections-Capital Investment Programme,Works for Heritage Buildings,
68,DCMS,EH,16/01/2014,Vinci Construction UK Ltd,40053977,"227,350.80",National Collections-Capital Investment Programme,WIP Professional Works Advice,
69,DCMS,EH,16/01/2014,Vinci Construction UK Ltd,40053977,"8,731.20",National Collections-Capital Investment Programme,Works for Heritage Buildings,
70,DCMS,EH,16/01/2014,Vinci Construction UK Ltd,40053977,"21,499.20",National Collections-Capital Investment Programme,WIP Operational Building Works,
71,DCMS,EH,22/01/2014,Nu-Weld Engineering Services Ltd,40053578,"53,428.88",National Collections-Capital Investment Programme,WIP Operational Building Works,
72,DCMS,EH,08/01/2014,Merac Systems Ltd,40051476,"29,304.00",National Collections-Capital Investment Programme,WIP Asset Purch Over 10k,
73,DCMS,EH,29/01/2014,AC Archaeology Ltd,40053905,"37,600.46",Heritage Protection & Planning-Heritage Protection,Hist Environ Prog Projects Gra,
74,DCMS,EH,13/01/2014,STM Security Group  UK Ltd,40052962,"30,060.32",National Collections-Property Maintenance Programme,Security Guard & Monitor Stati,
75,DCMS,EH,06/01/2014,Greenfold Systems Ltd,40050798,"32,465.40",National Collections-Capital Investment Programme,WIP Asset Purch Over 10k,
76,DCMS,EH,27/01/2014,Interserve Interiors,40051454,"115,511.44",National Collections-Capital Investment Programme,"WIP Exhib, Displays & Fit Out",
77,DCMS,EH,08/01/2014,Liveco Ltd,40052267,"32,550.00",National Collections-Capital Investment Programme,WIP Operational Building Works,
78,DCMS,EH,08/01/2014,Croft Building and Conservation Ltd,40051196,"37,076.49",National Collections-Major Conservation Projects,Works for Heritage Buildings,
79,DCMS,EH,14/01/2014,Micros Systems UK Limited,40050488,"2,580.00",National Collections-Capital Investment Programme,Software Licences <10k,
80,DCMS,EH,14/01/2014,Micros Systems UK Limited,40050488,"24,208.80",National Collections-Capital Investment Programme,Computer Equipment > 10k,
81,DCMS,EH,14/01/2014,Micros Systems UK Limited,40050488,"9,318.00",National Collections-Capital Investment Programme,Computer Consultancy,
82,DCMS,EH,14/01/2014,Micros Systems UK Limited,40050488,"11,190.00",National Collections-Capital Investment Programme,Computer Consultancy,
83,DCMS,EH,09/01/2014,J. Tomlinson Ltd,40052315,"55,785.84",National Collections-Capital Investment Programme,WIP Operational Building Works,
84,DCMS,EH,28/01/2014,J. Tomlinson Ltd,40053717,"76,916.16",National Collections-Capital Investment Programme,WIP Operational Building Works,
85,DCMS,EH,24/01/2014,T. Loughman & Co Ltd,40053269,"39,288.00",National Collections-Capital Investment Programme,WIP Refurbishment Works,
86,DCMS,EH,31/01/2014,Corona Energy,20053855,"29,621.53",Resources-Corporate,Electricity,
87,DCMS,EH,03/01/2014,GOPPION,20053525,"25,756.45",National Collections-Capital Investment Programme,WIP Professional Works Advice,
88,DCMS,EH,09/01/2014,ICCROM,20053604,"80,838.74",Heritage Protection & Planning-Nat. Planning & Conservation,Corporate Subscriptions,
89,DCMS,EH,22/01/2014,The National Trust Wiltshire,90513776,"50,215.00",Heritage Protection & Planning-Nat. Planning & Conservation,National Capacity Building, 
90,DCMS,EH,08/01/2014,West Yorkshire Archaeology Service,81002704,"30,000.00",Heritage Protection & Planning-Heritage Protection,Historic Environ Prog Grants, 
91,DCMS,EH,10/01/2014,L B Alexandra Park & Palace,82002422,"118,059.00",Heritage Protection & Planning-Nat. Planning & Conservation,Buildings and Monuments, 
92,DCMS,EH,10/01/2014,L B Alexandra Park & Palace,82002432,"36,673.00",Heritage Protection & Planning-Nat. Planning & Conservation,Buildings and Monuments, 
93,DCMS,EH,31/01/2014,Gloucestershire County Council,82002512,"39,077.00",Heritage Protection & Planning-Nat. Planning & Conservation,Buildings and Monuments, 
94,DCMS,EH,24/01/2014,St Michael and All Angels PCC,82002481,"43,000.00",Heritage Protection & Planning-Nat. Planning & Conservation,POW G I & II* 10/11 Onward Rep, 
95,DCMS,EH,07/01/2014,Ossett and Gawthorpe PCC,82002417,"74,250.00",Heritage Protection & Planning-Nat. Planning & Conservation,POW G I & II* 10/11 Onward Rep, 
96,DCMS,EH,21/01/2014,Northumberland County Council,90513770,"19,368.00",Heritage Protection & Planning-Nat. Planning & Conservation,Partnership Grant Scheme, 
97,DCMS,EH,21/01/2014,Northumberland County Council,90513770,"9,670.00",Heritage Protection & Planning-Nat. Planning & Conservation,Partnership Grant Scheme, 
98,DCMS,EH,10/01/2014,St Swithun's Parochial Church Council,82002426,"65,700.00",Heritage Protection & Planning-Nat. Planning & Conservation,POW Grade 2 Repair Grant, 
99,DCMS,EH,24/01/2014,East Suffolk Mind,82002473,"40,000.00",Heritage Protection & Planning-Nat. Planning & Conservation,Buildings and Monuments, 
100,DCMS,EH,17/01/2014,Clophill Heritage Trust,82002462,"119,486.00",Heritage Protection & Planning-Nat. Planning & Conservation,Buildings and Monuments, 
101,DCMS,EH,29/01/2014,Harlow District Council,90700203,"78,093.00",Heritage Protection & Planning-Nat. Planning & Conservation,Partnership Grant Scheme, 
102,DCMS,EH,29/01/2014,Carlisle City Council,90700202,"58,614.00",Heritage Protection & Planning-Nat. Planning & Conservation,S.77 Area Grants(ex S.10), 
103,DCMS,EH,17/01/2014,Hexton PCC,82002449,"86,000.00",Heritage Protection & Planning-Nat. Planning & Conservation,POW G I & II* 10/11 Onward Rep, 
104,DCMS,EH,24/01/2014,"Stydd Hall Farm, Darley Moor",82002474,"69,868.00",Heritage Protection & Planning-Nat. Planning & Conservation,Buildings and Monuments, 
105,DCMS,EH,29/01/2014,Algarkirk St Peter and St Paul PCC,82002502,"41,664.00",Heritage Protection & Planning-Nat. Planning & Conservation,POW G I & II* 10/11 Onward Rep, 
106,DCMS,EH,24/01/2014,St Mary de Castro PCC,82002480,"58,750.00",Heritage Protection & Planning-Nat. Planning & Conservation,POW G I & II* 10/11 Onward Rep, 
107,DCMS,EH,29/01/2014,PCC of Heckington with Howell,82002503,"25,000.00",Heritage Protection & Planning-Nat. Planning & Conservation,POW G I & II* 10/11 Onward Rep, 
108,DCMS,EH,17/01/2014,Yorkshire Sculpture Park,82002451,"26,000.00",Heritage Protection & Planning-Nat. Planning & Conservation,Buildings and Monuments, 
109,DCMS,EH,22/01/2014,Drighlington PCC,82002470,"86,500.00",Heritage Protection & Planning-Nat. Planning & Conservation,POW Grade 2 Repair Grant, 
110,DCMS,EH,14/01/2014,All Saints PCC (Fabric Fund),82002437,"30,500.00",Heritage Protection & Planning-Nat. Planning & Conservation,POW Grade 2 Repair Grant, 
111,DCMS,EH,10/01/2014,Wirral Christian Centre,82002424,"43,650.00",Heritage Protection & Planning-Nat. Planning & Conservation,POW Grade 2 Repair Grant, 
112,DCMS,EH,24/01/2014,PCC of St John the Divine,82002483,"40,400.00",Heritage Protection & Planning-Nat. Planning & Conservation,POW Grade 2 Repair Grant, 
113,DCMS,EH,31/01/2014,The National Trust,82002511,"113,750.00",Heritage Protection & Planning-Nat. Planning & Conservation,Buildings and Monuments, 
114,DCMS,EH,24/01/2014,CTP St Peter's Church,82002496,"61,000.00",Heritage Protection & Planning-Nat. Planning & Conservation,POW G I & II* 10/11 Onward Rep, 
115,DCMS,EH,13/01/2014,Winning Moves UK Ltd,1082738,"53,964.00",National Collections-Historic Properties Department,Goods & Souvenirs Purchases,
116,DCMS,EH,06/01/2014,Lyme Bay Cider Company Ltd,1082694,"25,855.45",National Collections-Historic Properties Department,Goods & Souvenirs Purchases,
117,DCMS,EH,16/01/2014,Lyme Bay Cider Company Ltd,1082762,"43,166.22",National Collections-Historic Properties Department,Goods & Souvenirs Purchases,
118,DCMS,EH,27/01/2014,Lyme Bay Cider Company Ltd,1082822,"26,205.86",National Collections-Historic Properties Department,Goods & Souvenirs Purchases,
119,DCMS,EH,28/01/2014,Lyme Bay Cider Company Ltd,1082831,"44,323.62",National Collections-Historic Properties Department,Goods & Souvenirs Purchases,
120,DCMS,EH,16/01/2014,Lyme Bay Cider Company Ltd,60001947,"25,657.57",National Collections-Historic Properties Department,Goods & Souvenirs Purchases,
121,DCMS,EH,21/01/2014,Tymeagain Ltd,1082773,"29,778.54",National Collections-Historic Properties Department,Goods & Souvenirs Purchases,
122,DCMS,EH,28/01/2014,Tymeagain Ltd,1082828,"29,778.54",National Collections-Historic Properties Department,Goods & Souvenirs Purchases,
